bitfinex/quotes_ETHUSD_20240820
["timestamp","ask_amount","ask_price","bid_price","bid_amount"]
[1724131637559,1.32083829,2694.6,2694.0,3.71183]
[1724131637775,1.32083829,2694.6,2694.1,3.80461286]
[1724131638091,3.71063,2695.0,2694.3,3.71145]
[1724131638260,3.71073,2694.9,2694.2,7.42312]
[1724131638463,3.71073,2694.9,2694.4,0.09253547]
[1724131638638,0.742136,2694.8,2694.1,2.3215]
[1724131638843,3.711,2694.7,2694.5,0.09220973]
[1724131639044,3.711,2694.7,2694.0,3.71185]
[1724131639390,3.711,2694.7,2694.6,0.09211395]
[1724131639693,3.711,2694.7,2694.1,3.80436291]
[1724131639986,8.2384726,2694.7,2694.6,0.09084954]
[1724131640299,3.71156,2694.3,2693.6,11.13242]
[1724131640508,3.71156,2694.3,2693.6,3.71242]
[1724131640690,3.71156,2694.3,2693.7,0.09171029]
[1724131640875,0.371156,2694.2,2693.7,0.09171029]
[1724131641387,4.082926,2694.2,2693.7,0.09171029]
[1724131641562,3.71186,2694.1,2693.7,0.09171029]
[1724131641758,0.371156,2694.2,2693.4,3.71265]
[1724131641759,6.446826,2694.2,2693.6,3.71249]
[1724131641989,6.446826,2694.2,2693.8,0.09161446]
[1724131642185,3.71181,2694.1,2693.7,0.09171029]
[1724131642401,3.71181,2694.1,2693.4,3.71265]
[1724131642402,4.7276736,2694.1,2693.9,0.09151863]
[1724131642575,1.0158636,2694.1,2693.8,0.09161446]
[1724131642909,1.0158636,2694.1,2693.3,3.71289]
[1724131642910,3.71209,2693.9,2693.3,3.71289]
[1724131643323,3.71209,2693.9,2693.4,0.09199783]
[1724131643611,7.42399,2694.0,2693.4,0.09199783]
[1724131643821,4.79233536,2694.0,2693.4,0.09199783]
[1724131644129,6.07577,2694.2,2693.6,3.7125]
[1724131644288,6.07577,2694.2,2693.5,3.71254]
[1724131644491,3.71222,2693.8,2693.7,0.09171029]
[1724131644786,7.4251,2693.6,2692.9,6.14338]
[1724131644985,4.69847,2693.6,2693.0,3.71331]
[1724131645520,4.69847,2693.6,2692.9,7.42676]
[1724131645725,4.69847,2693.6,2693.0,3.71331]
[1724131646022,0.98596,2693.6,2693.1,3.71318]
[1724131646389,6.14677,2693.8,2693.2,3.71304]
[1724131646576,2.4345,2693.8,2693.3,3.8049037]
[1724131646777,3.0,2693.9,2693.4,3.71276]
[1724131647084,3.0,2693.9,2693.5,3.80446198]
[1724131647284,2.2864,2694.1,2693.5,3.80446198]
[1724131647285,8.99826,2694.1,2693.5,3.80446198]
[1724131647631,3.71154,2694.3,2693.7,3.71223]
[1724131647783,7.42317,2694.3,2693.7,3.71223]
[1724131647995,7.42317,2694.3,2693.8,0.09161446]
[1724131648194,3.71154,2694.3,2693.7,3.71223]
[1724131648433,7.42315,2694.3,2693.8,0.09161446]
[1724131648618,3.71132,2694.5,2693.7,7.4245]
[1724131648832,3.71141,2694.4,2693.9,0.09151863]
[1724131649133,3.71155,2694.3,2693.8,0.09161446]
[1724131649306,3.71155,2694.3,2694.0,0.09142281]
[1724131649307,3.71181,2694.1,2694.0,0.09142281]
[1724131649510,4.680989,2694.1,2693.9,0.09151863]
[1724131649719,4.680989,2694.1,2694.0,0.09142281]
[1724131650019,3.71216,2693.9,2693.3,3.71291]
[1724131650238,3.71216,2693.9,2693.2,3.71295]
[1724131650239,7.42433,2693.9,2693.2,3.71295]
[1724131650441,3.71227,2693.8,2693.4,0.09206673]
[1724131650741,3.71227,2693.8,2693.2,3.71295]
[1724131650742,6.11507,2693.8,2693.2,3.71295]
[1724131651031,6.11507,2693.8,2693.5,0.09197088]
[1724131651242,7.18172529,2693.8,2693.2,7.42592]
[1724131651408,3.71205,2694.0,2693.6,0.09187503]
[1724131651613,3.71205,2694.0,2693.4,3.71275]
[1724131651942,3.71212,2693.9,2693.7,0.09177919]
[1724131652144,3.71233,2693.8,2693.2,3.71292]
[1724131652315,4.454775,2693.8,2693.2,3.71292]
[1724131653145,3.71238,2693.7,2693.2,3.71292]
[1724131654299,3.71238,2693.7,2693.3,0.0921626]
[1724131654655,3.71238,2693.7,2693.2,3.71292]
[1724131654807,0.742445,2693.8,2693.4,0.09206673]
[1724131655013,3.71262,2693.6,2692.9,3.71341]
[1724131655200,3.71271,2693.5,2692.9,3.71341]
[1724131656147,2.3678,2693.6,2693.0,3.7133]
[1724131656350,6.08033,2693.6,2693.0,3.7133]
[1724131656667,7.359595,2693.6,2692.9,7.42676]
[1724131656834,7.359595,2693.6,2692.9,3.71338]
[1724131657031,11.072175,2693.6,2693.0,3.71329]
[1724131657457,7.359595,2693.6,2693.0,3.71329]
[1724131657658,6.08033,2693.6,2693.0,3.71329]
[1724131657871,6.08033,2693.6,2692.8,3.71348]
[1724131658050,3.71265,2693.5,2692.8,3.71348]
[1724131658426,3.71281,2693.4,2692.8,7.42701]
[1724131658855,7.42542,2693.5,2692.8,3.71348]
[1724131659365,3.71265,2693.5,2692.8,3.71348]
[1724131659551,3.71265,2693.5,2692.9,3.71345]
[1724131660260,3.71265,2693.5,2692.9,7.42681]
[1724131660458,3.71265,2693.5,2692.9,3.71336]
[1724131660772,3.0,2693.8,2693.2,3.71296]
[1724131661871,6.71225,2693.8,2693.3,0.09239929]
[1724131662166,3.0,2693.8,2693.3,0.09239929]
[1724131662327,3.0,2693.8,2693.2,3.71296]
[1724131662526,3.0,2693.8,2693.4,0.09230343]
[1724131662723,2.3729,2694.0,2693.4,3.71269]
[1724131663054,3.71209,2693.9,2693.5,0.09220758]
[1724131663234,4.991777,2693.9,2693.5,0.09220758]
[1724131663443,4.991777,2693.9,2693.3,6.20323]
[1724131663672,8.703937,2693.9,2693.6,0.09208625]
[1724131663968,4.991777,2693.9,2693.3,6.20323]
[1724131664149,8.703977,2693.9,2693.7,0.09199041]
[1724131664324,1.4076877,2693.8,2693.3,6.20323]
[1724131664529,3.71223,2693.8,2693.3,6.20323]
[1724131665326,3.71245,2693.7,2693.1,3.7131]
[1724131665721,3.71268,2693.5,2692.9,6.04537]
[1724131666277,3.71252,2693.6,2692.9,9.75876]
[1724131666444,3.7123,2693.8,2693.2,3.71305]
[1724131666639,12.79694,2694.0,2693.3,3.71289]
[1724131666946,9.08487,2694.0,2693.3,3.71289]
[1724131667358,9.08487,2694.0,2693.4,3.71277]
[1724131667559,6.71197,2694.0,2693.4,3.71277]
[1724131667931,3.0,2694.0,2693.5,3.71262]
[1724131668126,3.71156,2694.3,2693.6,2.4227]
[1724131668331,3.71156,2694.3,2693.7,3.71226]
[1724131669445,3.71168,2694.2,2693.7,3.71226]
[1724131670371,3.71168,2694.2,2693.6,6.13516]
[1724131671045,7.42295,2694.4,2693.7,3.71232]
[1724131671379,6.71157,2694.3,2693.7,3.71232]
[1724131672488,3.0,2694.3,2693.7,7.4246]
[1724131672780,6.71156,2694.3,2693.7,3.71228]
[1724131674401,3.71174,2694.2,2693.6,2.4227]
[1724131674559,3.7119,2694.1,2693.6,2.4227]
[1724131674943,3.71199,2694.0,2693.6,2.4227]
[1724131675573,3.71199,2694.0,2693.4,3.71277]
[1724131675779,3.71199,2694.0,2693.3,6.09153]
[1724131675933,4.083189,2694.0,2693.3,6.09153]
[1724131676134,3.7121,2693.9,2693.3,6.09153]
[1724131676783,3.7121,2693.9,2693.4,0.09211468]
[1724131678077,3.71199,2694.0,2693.4,0.09211468]
[1724131678878,3.71176,2694.2,2693.4,0.09211468]
[1724131679029,7.42356,2694.2,2693.5,3.71254]
[1724131679229,7.42357,2694.2,2693.6,0.09192297]
[1724131679661,3.71176,2694.2,2693.6,0.09192297]
[1724131680294,3.71191,2694.1,2693.6,0.09192297]
[1724131680437,3.71236,2693.7,2693.6,0.09192297]
[1724131680638,3.7125,2693.6,2692.9,6.03045]
[1724131680947,3.7125,2693.6,2692.9,6.03046]
[1724131681749,3.7125,2693.6,2692.9,2.317]
[1724131681750,3.71266,2693.5,2692.9,2.317]
[1724131681980,4.08375,2693.6,2692.9,2.317]
[1724131682477,3.71265,2693.5,2692.9,2.317]
[1724131683279,3.71278,2693.4,2692.9,2.317]
[1724131684438,3.71308,2693.2,2692.6,3.21958116]
[1724131684632,3.71301,2693.3,2692.6,2.4271]
[1724131684878,3.71345,2693.0,2692.3,2.4271]
[1724131685184,3.71345,2693.0,2692.4,3.71414]
[1724131685540,3.71345,2693.0,2692.3,2.4271]
[1724131685835,3.71345,2693.0,2692.3,6.14127]
[1724131686081,3.71283,2693.4,2692.4,3.71414]
[1724131686284,3.71301,2693.3,2692.5,3.71393]
[1724131686782,3.71283,2693.4,2692.5,3.71393]
[1724131686783,3.71308,2693.2,2692.5,3.71393]
[1724131687001,4.455671,2693.2,2692.3,6.14129]
[1724131687303,3.71343,2693.0,2692.3,6.14129]
[1724131687656,3.71388,2692.6,2692.0,2.3915]
[1724131688993,3.71388,2692.6,2692.0,6.10617]
[1724131689212,7.42735,2692.8,2692.0,6.10611]
[1724131689428,3.165091,2693.2,2692.0,2.3915]
[1724131689429,3.71341,2693.0,2692.0,2.3915]
[1724131689635,7.42685,2693.0,2692.3,3.71428]
[1724131689834,3.71341,2693.0,2692.3,3.71421]
[1724131690209,3.71341,2693.0,2692.1,7.42899]
[1724131690210,3.71361,2692.8,2692.1,7.42899]
[1724131690409,3.71361,2692.8,2692.1,3.71448]
[1724131690592,3.71361,2692.8,2692.2,3.71441]
[1724131690797,7.42685,2693.0,2692.2,3.71441]
[1724131691105,7.4263,2693.2,2692.5,6.111]
[1724131691325,3.71335,2693.0,2692.3,3.71427]
[1724131691493,3.71335,2693.0,2692.3,3.71419]
[1724131691839,3.7132,2693.1,2692.4,3.80425613]
[1724131693207,3.0,2693.4,2692.4,3.80425613]
[1724131693208,3.71294,2693.3,2692.6,3.7138]
[1724131693407,3.71294,2693.3,2692.7,2.53557837]
[1724131694536,7.42621,2693.2,2692.7,2.53557837]
[1724131694711,3.71307,2693.2,2692.7,2.53557837]
[1724131694908,7.4272,2692.8,2692.7,0.08987837]
[1724131695108,3.7151,2691.8,2691.5,0.58231213]
[1724131695307,3.71508,2691.8,2691.2,2.4457]
[1724131695525,7.43017,2691.8,2691.6,0.08805682]
[1724131695702,3.71508,2691.8,2691.2,2.4457]
[1724131696099,3.71508,2691.8,2691.3,0.0884891]
[1724131696332,2.3634,2692.1,2691.3,0.0884891]
[1724131696333,3.71534,2691.6,2691.3,0.0884891]
[1724131696528,3.71505,2691.8,2690.7,0.58241688]
[1724131696728,5.3634,2692.1,2690.8,3.71629]
[1724131696729,3.71554,2691.4,2690.8,3.71629]
[1724131697430,3.71532,2691.6,2690.8,3.71624]
[1724131697811,3.71514,2691.7,2691.0,3.71608]
[1724131698011,3.71514,2691.7,2691.0,3.716]
[1724131698259,3.7153,2691.6,2691.0,3.716]
[1724131698554,3.71505,2691.8,2691.2,3.71581]
[1724131699122,3.71505,2691.8,2691.1,2.4266]
[1724131699312,3.71522,2691.7,2691.1,2.4266]
[1724131699512,3.71522,2691.7,2691.1,6.14253]
[1724131699775,3.71522,2691.7,2691.1,2.4266]
[1724131699971,3.71526,2691.6,2691.2,2.4266]
[1724131700426,3.71505,2691.8,2691.3,3.71567]
[1724131700613,3.71479,2692.0,2691.2,2.4266]
[1724131700957,3.71479,2692.0,2691.5,3.71539]
[1724131701316,3.71465,2692.1,2691.5,3.71539]
[1724131701616,3.71448,2692.2,2691.3,7.4311]
[1724131701617,3.71473,2692.0,2691.3,7.4311]
[1724131701856,3.71473,2692.0,2691.4,3.7154]
[1724131702050,3.71448,2692.2,2691.5,3.71528]
[1724131702630,3.71464,2692.1,2691.6,0.08820111]
[1724131703037,3.71473,2692.0,2691.6,0.08820111]
[1724131703247,3.71506,2691.8,2691.2,2.4266]
[1724131703764,3.71506,2691.8,2691.1,3.71586]
[1724131703765,3.7152,2691.7,2691.3,0.0884891]
[1724131703964,3.71547,2691.5,2691.3,0.0884891]
[1724131704163,3.71547,2691.5,2690.7,3.71643]
[1724131704347,3.71547,2691.5,2690.7,3.71641]
[1724131704564,3.71557,2691.4,2690.8,3.71635]
[1724131704767,3.71557,2691.4,2690.7,3.71641]
[1724131704768,3.71575,2691.3,2690.7,3.71641]
[1724131705353,3.71557,2691.4,2690.7,7.43283]
[1724131705550,3.71569,2691.3,2690.7,3.71497582]
[1724131705769,0.743126,2691.3,2690.7,3.71497582]
[1724131706000,3.71557,2691.4,2690.7,3.71497582]
[1724131706792,3.71557,2691.4,2690.8,0.08920584]
[1724131706793,3.71584,2691.2,2690.8,0.08920584]
[1724131707555,3.71596,2691.1,2690.6,2.45]
[1724131708057,3.71584,2691.2,2690.7,0.08932273]
[1724131708507,7.43173,2691.2,2690.7,0.08932273]
[1724131708705,0.743173,2691.1,2690.7,0.08932273]
[1724131708910,3.71599,2691.1,2690.7,0.08932273]
[1724131709201,7.43272,2690.8,2690.7,0.08932273]
[1724131709572,3.71698,2690.4,2689.9,2.5456352]
[1724131709774,0.371698,2690.3,2689.9,2.5456352]
[1724131709993,3.71706,2690.3,2690.0,0.08720097]
[1724131710693,3.71698,2690.4,2690.0,0.08720097]
[1724131710694,3.71721,2690.2,2690.0,0.08720097]
[1724131711271,3.71706,2690.3,2690.0,0.08720097]
[1724131711707,13.49576,2690.1,2690.0,0.08720097]
[1724131711908,9.77843,2690.1,2690.0,0.08720097]
[1724131712133,9.77843,2690.1,2689.9,0.1296352]
[1724131712134,3.71747,2690.0,2689.9,0.1296352]
[1724131712356,7.43494,2690.0,2689.9,0.1296352]
[1724131712638,3.71747,2690.0,2689.9,0.1296352]
[1724131712950,4.695961,2690.0,2689.9,0.1296352]
[1724131714208,8.413431,2690.0,2689.9,0.1296352]
[1724131714408,4.695961,2690.0,2689.9,0.1296352]
[1724131714627,3.71713,2690.3,2689.9,0.1296352]
[1724131714832,3.71747,2690.0,2689.9,0.1296352]
[1724131715216,7.43494,2690.0,2689.9,0.1296352]
[1724131715851,3.71747,2690.0,2689.9,0.1296352]
[1724131716068,6.06705,2690.4,2689.9,0.1296352]
[1724131716274,3.71576,2691.3,2690.4,3.71691]
[1724131716471,0.371576,2691.2,2690.6,3.71663]
[1724131717115,2.4449,2691.7,2690.4,6.10776]
[1724131717116,3.71503,2691.8,2691.1,3.71592]
[1724131717311,3.71473,2692.0,2691.0,5.97777]
[1724131717566,3.71473,2692.0,2691.2,3.7158]
[1724131717733,4.086343,2691.9,2691.2,3.7158]
[1724131718762,4.086323,2691.9,2691.0,3.71607]
[1724131719342,3.71522,2691.7,2690.8,3.71635]
[1724131719546,3.71522,2691.7,2690.7,2.3976]
[1724131719547,3.7154,2691.5,2690.7,6.11407]
[1724131719859,3.7154,2691.5,2690.8,3.71635]
[1724131720417,3.7154,2691.5,2690.8,3.71535]
[1724131720616,3.7154,2691.5,2690.7,2.3976]
[1724131720812,3.71554,2691.4,2690.7,2.3976]
[1724131721081,3.71554,2691.4,2690.7,6.11409]
[1724131721231,0.7802142,2691.5,2690.7,6.11409]
[1724131721436,4.4956242,2691.5,2690.7,6.11409]
[1724131721667,3.71556,2691.4,2690.8,0.08648262]
[1724131721875,0.82111842,2691.3,2690.8,0.08648262]
[1724131722329,3.71556,2691.4,2690.8,0.08648262]
[1724131722531,3.71568,2691.3,2690.8,0.08648262]
[1724131722732,3.71568,2691.3,2690.6,3.71662]
[1724131722962,3.71568,2691.3,2690.9,0.08638658]
[1724131723287,3.71568,2691.3,2691.0,0.08629055]
[1724131723426,0.371568,2691.2,2691.0,0.08629055]
[1724131723631,3.71595,2691.1,2690.4,3.71691]
[1724131723831,0.371568,2691.2,2690.5,3.71677]
[1724131724032,0.371568,2691.2,2690.5,3.80354078]
[1724131724228,0.371568,2691.2,2690.6,3.71661]
[1724131724500,0.371568,2691.2,2690.7,0.08657867]
[1724131724631,0.4087248,2691.1,2690.7,0.08657867]
[1724131725573,0.4087248,2691.1,2690.4,3.71691]
[1724131725750,3.71615,2691.0,2690.8,0.08648262]
[1724131726067,3.71622,2690.9,2690.3,3.71705]
[1724131726279,3.71622,2690.9,2690.2,3.71713]
[1724131726280,3.71622,2690.9,2690.2,7.43422]
[1724131726570,4.1246948,2691.1,2690.3,3.71702]
[1724131726773,4.35712948,2691.0,2690.3,3.71702]
[1724131726935,0.64103948,2691.0,2690.3,3.71702]
[1724131727128,0.64103948,2691.0,2690.2,3.71709]
[1724131727129,3.64103948,2691.0,2690.2,3.71709]
[1724131727332,3.64103948,2691.0,2690.3,3.71694]
[1724131727753,3.71623,2690.9,2690.2,3.71707]
[1724131727971,0.73572695,2690.8,2690.2,3.71707]
[1724131728669,4.45209695,2690.8,2690.1,6.2051]
[1724131729060,3.71675,2690.6,2689.8,9.86595]
[1724131729266,3.71696,2690.4,2689.8,2.4306]
[1724131729436,0.371696,2690.3,2689.7,3.71779]
[1724131729960,0.371696,2690.3,2689.8,3.71771]
[1724131730335,0.371696,2690.3,2689.9,3.8472352]
[1724131730633,7.4335,2690.6,2689.9,3.8472352]
[1724131730867,5.2857,2690.7,2690.0,3.71746]
[1724131731104,5.2857,2690.7,2689.9,0.1296352]
[1724131731303,3.71692,2690.4,2689.9,0.1296352]
[1724131731668,3.71706,2690.3,2689.9,0.1296352]
[1724131731866,0.743398,2690.2,2689.9,0.1296352]
[1724131732068,3.71736,2690.1,2689.9,0.1296352]
[1724131732320,3.71747,2690.0,2689.9,0.1296352]
[1724131733109,3.71747,2690.0,2689.9,0.21728566]
[1724131734119,7.43494,2690.0,2689.9,0.21728566]
[1724131734289,9.0403638,2690.0,2689.9,0.1296352]
[1724131735116,5.3228938,2690.0,2689.9,0.1296352]
[1724131735420,9.0403638,2690.0,2689.9,0.1296352]
[1724131736570,4.7728938,2690.0,2689.9,0.1296352]
[1724131736886,4.7728938,2690.0,2689.9,0.21728566]
[1724131737510,8.4903638,2690.0,2689.9,0.21728566]
[1724131737815,8.4903638,2690.0,2689.9,0.1296352]
[1724131737983,9.0403638,2690.0,2689.9,0.1296352]
[1724131738328,12.0403638,2690.0,2689.9,0.1296352]
[1724131738696,15.7723638,2690.0,2689.9,0.1296352]
[1724131738896,19.4898338,2690.0,2689.9,0.1296352]
[1724131740121,21.7683338,2690.0,2689.9,0.1296352]
[1724131740984,25.4858038,2690.0,2689.9,0.1296352]
[1724131741184,21.7683338,2690.0,2689.9,0.1296352]
[1724131741742,13.7688638,2690.0,2689.9,0.1296352]
[1724131742056,3.71723,2690.2,2689.9,0.1296352]
[1724131742383,3.71698,2690.4,2690.0,0.08763721]
[1724131743225,3.71667,2690.6,2690.0,0.08763721]
[1724131743436,6.19781,2690.7,2690.0,3.80498721]
[1724131743734,3.71666,2690.6,2690.0,0.08763721]
[1724131743944,3.71693,2690.4,2690.0,0.08763721]
[1724131744310,6.0377,2690.4,2689.9,0.1296352]
[1724131744537,7.43494,2690.0,2689.9,0.1296352]
[1724131744726,6.71747,2690.0,2689.9,0.1296352]
[1724131744894,11.656687,2690.0,2689.9,0.1296352]
[1724131745100,17.670857,2690.0,2689.9,0.1296352]
[1724131745506,13.953387,2690.0,2689.9,0.1296352]
[1724131746111,17.670857,2690.0,2689.9,0.1296352]
[1724131746424,13.953387,2690.0,2689.9,0.1296352]
[1724131747328,17.670857,2690.0,2689.9,0.1296352]
[1724131747835,21.388327,2690.0,2689.9,0.1296352]
[1724131748045,21.388327,2690.0,2689.9,5.2e-06]
[1724131749417,17.670857,2690.0,2689.9,5.2e-06]
[1724131750142,3.907,2689.2,2687.9,0.58297691]
[1724131750347,3.71969,2688.4,2687.7,2.3956]
[1724131750515,3.71969,2688.4,2688.0,0.08697059]
[1724131750717,6.71948,2688.6,2687.8,3.72038]
[1724131750941,3.71976,2688.4,2688.1,0.08687435]
[1724131751245,6.71948,2688.6,2687.9,3.72029]
[1724131751246,3.0,2688.5,2687.9,3.72029]
[1724131751428,3.0,2688.5,2688.2,0.08677812]
[1724131751741,3.0,2688.5,2688.3,0.0866819]
[1724131751905,3.0,2688.7,2688.3,2.3935]
[1724131752106,6.71938,2688.7,2688.4,0.08658568]
[1724131752446,3.0,2688.7,2688.4,0.08658568]
[1724131753096,3.71861,2689.2,2688.4,0.08658568]
[1724131753300,3.71861,2689.2,2688.3,2.3935]
[1724131753301,3.71901,2688.9,2688.3,2.3935]
[1724131753649,7.43753,2689.1,2688.4,3.71958]
[1724131753859,3.719,2688.9,2688.4,0.08658568]
[1724131754318,3.71878,2689.1,2688.4,0.08658568]
[1724131754647,6.71848,2689.3,2688.6,3.71932]
[1724131754950,3.71858,2689.2,2688.6,3.71939]
[1724131755103,4.390328,2689.3,2688.7,6.22683468]
[1724131755104,3.71848,2689.3,2688.7,6.22683468]
[1724131755304,3.71863,2689.2,2688.7,2.50766468]
[1724131755506,0.743711,2689.2,2688.7,2.50766468]
[1724131755718,3.71848,2689.3,2688.7,2.50766468]
[1724131756115,3.71848,2689.3,2688.7,6.22688468]
[1724131756316,4.976,2690.2,2688.7,2.50766468]
[1724131756513,3.71805,2689.6,2688.9,3.71886]
[1724131756747,3.71825,2689.5,2689.0,2.4798]
[1724131756966,3.71832,2689.4,2689.0,2.56582468]
[1724131757126,0.371825,2689.5,2689.0,0.08602468]
[1724131757127,3.71865,2689.2,2689.0,0.08602468]
[1724131757324,3.71865,2689.2,2688.6,2.4798]
[1724131757651,3.71865,2689.2,2689.1,0.08592851]
[1724131757855,3.71865,2689.2,2688.6,2.4798]
[1724131758050,3.71865,2689.2,2689.1,0.08592851]
[1724131758211,3.71865,2689.2,2688.6,2.4798]
[1724131758545,3.71865,2689.2,2688.6,6.19912]
[1724131758760,3.71865,2689.2,2688.7,0.08628384]
[1724131758923,3.71844,2689.3,2688.7,3.80553384]
[1724131759515,3.71835,2689.4,2688.7,3.80545384]
[1724131759721,3.71835,2689.4,2688.8,2.4465]
[1724131760025,3.71852,2689.3,2688.8,2.53269793]
[1724131760456,3.0,2689.6,2688.9,3.71898]
[1724131760751,3.0,2689.6,2689.0,2.4465]
[1724131760908,0.671747,2690.0,2689.0,2.53250557]
[1724131760909,3.71788,2689.7,2689.0,2.53250557]
[1724131761109,3.0,2689.6,2689.0,6.25128557]
[1724131761343,3.71768,2689.9,2689.3,3.71835]
[1724131761610,3.71779,2689.8,2689.2,2.4465]
[1724131761825,3.71806,2689.6,2689.4,0.08562094]
[1724131762146,3.7183,2689.4,2689.3,0.08571709]
[1724131762351,7.43728,2689.2,2688.8,2.4846]
[1724131762536,3.71862,2689.2,2688.8,2.4846]
[1724131763657,3.71833,2689.4,2688.8,2.4846]
[1724131763838,3.71833,2689.4,2688.9,3.71899]
[1724131764044,7.976,2689.8,2688.9,3.71899]
[1724131764337,7.976,2689.8,2688.8,2.4846]
[1724131764338,3.71832,2689.4,2688.8,2.4846]
[1724131764515,3.71819,2689.5,2688.8,2.4846]
[1724131764714,3.71819,2689.5,2688.9,3.71897]
[1724131764915,3.71832,2689.4,2688.8,2.4846]
[1724131765113,0.743651,2689.4,2688.9,3.71897]
[1724131765438,3.71854,2689.3,2688.8,2.4846]
[1724131765643,3.71873,2689.1,2688.8,2.4846]
[1724131766750,7.4371,2689.3,2688.9,0.08607382]
[1724131766962,3.71854,2689.3,2688.9,0.08607382]
[1724131767315,3.71859,2689.2,2688.9,0.08607382]
[1724131767715,4.462433,2689.1,2688.9,0.08607382]
[1724131767954,3.71872,2689.1,2688.9,0.08607382]
[1724131768749,3.71821,2689.5,2689.0,2.4583]
[1724131768950,3.0,2689.4,2689.0,2.4583]
[1724131769262,3.71853,2689.3,2689.0,0.08596589]
[1724131769462,0.671853,2689.2,2689.0,0.08596589]
[1724131769620,3.71853,2689.3,2688.7,2.3378]
[1724131769821,3.71853,2689.3,2689.1,0.08587559]
[1724131770067,6.71831,2689.4,2689.2,2.3378]
[1724131770374,3.0,2689.4,2689.2,2.3378]
[1724131770523,3.40121558,2689.4,2689.2,2.3378]
[1724131770724,10.83783558,2689.4,2689.3,0.08568328]
[1724131770918,7.11952558,2689.4,2689.3,0.08568328]
[1724131771123,3.71808,2689.6,2689.0,2.4011]
[1724131771124,3.71817,2689.5,2689.0,2.4011]
[1724131771362,3.71808,2689.6,2689.1,0.08587559]
[1724131771562,6.71817,2689.5,2689.1,0.08587559]
[1724131774434,3.71834,2689.4,2689.1,0.08587559]
[1724131776071,3.0,2689.5,2689.1,0.08587559]
[1724131776225,3.71824,2689.5,2689.1,0.08587559]
[1724131776563,3.71832,2689.4,2689.1,0.08587559]
[1724131777334,3.71824,2689.5,2689.1,0.08587559]
[1724131777856,3.71831,2689.4,2689.1,0.08587559]
[1724131779025,7.43618,2689.6,2689.1,0.08587559]
[1724131779230,3.71825,2689.5,2689.1,0.08587559]
[1724131779428,3.71803,2689.6,2689.1,0.08587559]
[1724131779651,3.0,2689.8,2689.1,0.08587559]
[1724131779835,7.45049,2690.0,2689.1,0.08587559]
[1724131779836,3.71838,2689.4,2689.1,0.08587559]
[1724131780429,3.71835,2689.4,2689.1,0.08587559]
[1724131781679,3.71846,2689.3,2689.1,0.08587559]
[1724131781833,7.43714,2689.2,2689.1,0.08587559]
[1724131782031,7.43714,2689.2,2688.5,2.2718]
[1724131782032,3.71895,2689.0,2688.5,2.2718]
[1724131782275,3.719,2688.9,2688.5,2.2718]
[1724131782769,3.719,2688.9,2688.3,7.43947]
[1724131782770,3.719,2688.9,2688.3,3.71972]
[1724131783133,3.719,2688.9,2688.3,7.43945]
[1724131783476,3.719,2688.9,2688.3,3.71972]
[1724131784170,3.719,2688.9,2688.3,7.43947]
[1724131784349,3.719,2688.9,2688.3,7.43946]
[1724131784543,3.719,2688.9,2688.3,3.71972]
[1724131785077,4.117014,2689.2,2688.5,3.71947]
[1724131785078,7.835684,2689.2,2688.5,3.71947]
[1724131785229,6.71867,2689.2,2688.6,3.71935]
[1724131785436,3.0,2689.2,2688.7,3.71926]
[1724131785635,6.7185,2689.3,2688.7,3.71926]
[1724131785836,3.0,2689.3,2688.9,3.71896]
[1724131786069,3.7184,2689.4,2688.9,3.71896]
[1724131786374,3.7184,2689.4,2688.8,2.3559]
[1724131786738,3.7184,2689.4,2688.8,6.07497]
[1724131786978,3.71838,2689.4,2688.9,3.71896]
[1724131787158,3.71811,2689.6,2688.9,3.7189]
[1724131787333,3.71811,2689.6,2688.8,2.3559]
[1724131787540,3.0,2689.7,2689.2,3.71848]
[1724131787741,3.71799,2689.7,2689.1,3.71864]
[1724131787961,3.71799,2689.7,2689.3,0.08572444]
[1724131788162,3.71803,2689.6,2689.2,0.08582059]
[1724131788674,3.71803,2689.6,2689.3,0.08572444]
[1724131789036,1.043584,2689.7,2689.1,3.71861]
[1724131789237,6.7179,2689.7,2689.4,0.08562829]
[1724131789437,6.7179,2689.7,2689.1,3.71861]
[1724131789884,6.7179,2689.7,2689.2,0.08582059]
[1724131790440,3.71802,2689.6,2689.2,0.08582059]
[1724131793784,3.71802,2689.6,2689.0,3.71882]
[1724131793785,7.43613,2689.6,2689.0,3.71882]
[1724131793991,7.43613,2689.6,2689.3,0.08572444]
[1724131794161,7.43613,2689.6,2689.0,3.71882]
[1724131794162,8.479743,2689.6,2689.0,3.71882]
[1724131794363,8.479743,2689.6,2689.1,0.08591675]
[1724131794603,4.761633,2689.6,2689.1,0.08591675]
[1724131794991,3.71845,2689.3,2688.8,2.3559]
[1724131795188,3.71845,2689.3,2689.2,0.08582059]
[1724131795404,8.2126233,2689.5,2688.9,3.71891]
[1724131795581,3.71847,2689.3,2689.2,0.08582059]
[1724131795914,3.71847,2689.3,2688.8,2.3559]
[1724131796113,3.71847,2689.3,2689.2,0.08579856]
[1724131796275,3.71861,2689.2,2688.8,2.3559]
[1724131796669,3.71861,2689.2,2688.9,0.08608706]
[1724131797112,3.71847,2689.3,2688.9,0.08608706]
[1724131797412,7.43699,2689.3,2688.9,0.08608706]
[1724131797617,4.63234769,2689.3,2688.9,0.08608706]
[1724131797924,3.71885,2689.0,2688.9,0.08608706]
[1724131798071,7.4377,2689.0,2688.9,0.08608706]
[1724131798276,3.7191,2688.9,2688.3,2.2842]
[1724131798723,4.462895,2688.9,2688.4,0.08652396]
[1724131799089,0.743795,2688.9,2688.4,3.80620396]
[1724131799294,3.71885,2689.0,2688.4,3.80620396]
[1724131799962,3.71885,2689.0,2688.4,0.08652396]
[1724131800109,7.43736,2689.2,2688.5,3.71947]
[1724131800310,3.71866,2689.2,2688.6,3.71933]